Cogmind - Beta 17.1 @@@ ROGUE MODE // 2026.08.26 @ 17:15:39 Player: 4R-ZE3 Result: Self-destructed Performance ------------- Evolutions (1) 500 Regions Visited (3) 600 Robots Destroyed (51) 255 Value Destroyed (1346) 1346 Prototype IDs (3) 60 Alien Tech Used (0) 0 Bonus (151) 151 TOTAL SCORE: 2912 Bonus ------- High Alert Combat Kills 8 Follower Combat Kills 155 Friendly Fire -12 Cogmind --------- Core Integrity 284/400 Matter 300/300 Energy 265/265 System Corruption 0% Temperature Cool (0) Movement Treading (213) Ox1 Location -9/Materials Parts ------- > --- POWER (1) -------- Improved Ion Engine > --- PROPULSION (3) --- Light Treads Light Treads Improved Treads > --- UTILITY (3) ------ Heat Sink Heat Sink Huge Storage Unit > --- WEAPON (2) ------- Advanced Beam Cannon Advanced Beam Cannon > --- INVENTORY (25) --- Ion Engine Light Ion Engine Light Nuclear Core Light Treads Light Treads Light Treads Light Treads Light Treads Light Treads Light Treads Light Treads Light Treads Light Treads Light Treads Compact Wheel Compact Wheel Heat Sink Small Laser Beam Cannon Light Assault Rifle Light Assault Rifle Datajack Peak State ------------ > --- POWER ------------ Improved Ion Engine > --- PROPULSION ------- Light Treads Light Treads Improved Treads > --- UTILITY ---------- Heat Sink Heat Sink High-capacity Storage Unit > --- WEAPON ----------- Advanced Beam Cannon Advanced Beam Cannon > --- INVENTORY -------- Ion Engine Light Ion Engine Light Nuclear Core Light Treads Light Treads Light Treads Light Treads Light Treads Light Treads Light Treads Light Treads Compact Wheel Compact Wheel Heat Sink Small Laser Light Assault Rifle Light Assault Rifle Datajack [Rating: 17] Favorites ----------- Power Ion Engine Engine Ion Engine Propulsion Light Treads Treads Light Treads Utility Heat Sink Device Heat Sink Storage High-capacity Storage Unit Protection Light Armor Plating Weapon Assault Rifle Energy Cannon Advanced Beam Cannon Ballistic Gun Assault Rifle Build | -11 -10 -10 -9 ------- Run | Yrd Mat Min Mat Slots Evolved 2 | . . . 2 Power . | . . . . Propulsion 1 | . . . 1 Utility 1 | . . . 1 Weapon . | . . . . Parts Attached 28 | 6 8 . 14 Power 3 | 1 1 . 1 Engine 3 | 1 1 . 1 Core . | . . . . Reactor . | . . . . Propulsion 10 | 2 1 . 7 Treads 10 | 2 1 . 7 Leg . | . . . . Wheel . | . . . . Hover . | . . . . Flight . | . . . . Utility 8 | 1 4 . 3 Device 3 | . 1 . 2 Storage 4 | 1 2 . 1 Processor . | . . . . Hackware . | . . . . Protection 1 | . 1 . . Artifact . | . . . . Weapon 7 | 2 2 . 3 Energy Gun . | . . . . Energy Cannon 3 | . 1 . 2 Ballistic Gun 4 | 2 1 . 1 Ballistic Cannon . | . . . . Launcher . | . . . . Special Weapon . | . . . . Impact Weapon . | . . . . Slashing Weapon . | . . . . Piercing Weapon . | . . . . Special Melee Weapon . | . . . . Unidentified Prototypes 1 | . . . 1 Parts Lost 4 | . 2 . 2 Power 1 | . 1 . . Propulsion . | . . . . Utility 1 | . 1 . . Weapon 2 | . . . 2 Highest Loss Streak 1 | . 1 . 1 To Critical Strikes . | . . . . Average Backups 10 | 2 6 9 16 Power 1 | . 1 1 2 Propulsion 4 | 1 2 3 7 Utility . | . . 1 1 Weapon 3 | . 2 3 3 Tool/Special . | . . . . Unused Backups 14 | . . . 14 Power 2 | . . . 2 Propulsion 8 | . . . 8 Utility 1 | . . . 1 Weapon 2 | . . . 2 Tool/Special 1 | . . . 1 Average Slot Usage (%) 97 | . 97 100 94 Engine 13 | . 14 14 11 Treads 29 | . 28 28 33 Device 11 | . 4 14 16 Storage 13 | . 14 14 11 Protection 2 | . 7 . . Energy Cannon 6 | . 7 . 13 Ballistic Gun 19 | . 20 28 8 Peak Build Rating 17 | 6 7 8 17 Average Rating 9 | 5 6 7 13 On Entrance 5 | . 6 7 8 Avg Prop Armor Cover (%) . | . . . . Naked Turns . | . . . . Heaviest Build 97 | 11 51 49 97 Greatest Support 63 | 40 40 40 63 Greatest Overweight (x) 1 | 1 1 1 1 Average Overweight (x) . | . . 1 . Largest Inventory Capacity 25 | 8 20 20 25 Average Capacity 19 | 6 16 20 21 Most Carried 22 | 4 8 10 22 Average Carried 10 | 2 6 9 16 Final Capacity 25 | 8 20 20 25 Final Carried 22 | 4 8 10 22 Class Distribution -------------------- 74% | Mutant 25% | Scavenger-Mutant Dominant Class ---------------- Mutant | -10/Materials Mutant | -10/Mines Scavenger-Mutant | -9/Materials Resources | -11 -10 -10 -9 ----------- Run | Yrd Mat Min Mat Matter Collected 836 | 208 299 60 269 Remotely . | . . . . Salvage Created 1925 | . 544 114 1267 Parts 118 | . 36 9 73 Haulers Intercepted 5 | . 2 . 3 Recyclers Shooed 2 | . . . 2 Parts Field Recycled . | . . . . Retrieved Matter . | . . . . Parts Self-Destructed . | . . . . Prevented . | . . . . Parts Restored . | . . . . Kills | -11 -10 -10 -9 ------- Run | Yrd Mat Min Mat Combat Hostiles Destroyed 43 | . 14 4 25 Guns 22 | . 8 4 10 Cannons 20 | . 6 . 14 Classes Destroyed 7 | . 3 . 4 Worker 1 | . . . 1 Hauler 5 | . 2 . 3 Recycler 1 | . . . 1 Watcher 1 | . . . 1 Swarmer 10 | . 5 2 3 Grunt 28 | . 9 2 17 Sentry 5 | . . . 5 Best Kill Streak 7 | . 3 2 7 Combat Bots Only 7 | . 3 2 7 Max Kills in Single Turn 1 | . 1 1 1 Gunslinging . | . . . . Exploded . | . . . . Melee . | . . . . Uniques/NPCs Destroyed . | . . . . Combat | -11 -10 -10 -9 -------- Run | Yrd Mat Min Mat Hostile Shots Fired 181 | . 79 11 91 Missed 53 | . 22 4 27 Hits 128 | . 57 7 64 Projectile 128 | . 57 7 64 Damage Taken 1391 | . 585 81 725 Core 199 | . 59 24 116 Absorbed by Shields . | . . . . Core Remaining (%) 83 | 100 . 66 . Volleys Fired 137 | . 50 15 72 Largest 2 | . 2 2 2 Hottest 136 | . 80 40 136 Shots Fired 273 | . 100 30 143 Gun 163 | . 67 30 66 Cannon 110 | . 33 . 77 Launcher . | . . . . Special . | . . . . Kinetic 163 | . 67 30 66 Thermal 110 | . 33 . 77 Explosive . | . . . . Electromagnetic . | . . . . Robot Hit Streak 30 | . 6 4 30 Robot Miss Streak 2 | . 2 2 2 Penetration Max . | . . . . Secondary Targets 4 | . 1 1 2 Max Gunslinging Chain 1 | . 1 1 1 Shots Hit Robots 182 | . 62 17 103 Core Hits 73 | . 20 8 45 Critical Kills 1 | . . . 1 Critical Parts Destroyed . | . . . . Critical Strikes 1 | . . . 1 Meltdown 1 | . . . 1 Melee Attacks . | . . . . Impact . | . . . . Slashing . | . . . . Piercing . | . . . . Sneak Attacks . | . . . . Combat Hostiles . | . . . . Follow-up Attacks . | . . . . Damage Inflicted 2772 | . 907 195 1670 Guns 1191 | . 515 195 481 Cannons 1581 | . 392 . 1189 Explosions . | . . . . Melee . | . . . . Ramming . | . . . . Kinetic 1191 | . 515 195 481 Thermal 1581 | . 392 . 1189 Explosive . | . . . . Electromagnetic . | . . . . Impact . | . . . . Slashing . | . . . . Piercing . | . . . . Highest Corruption . | . . . . Average Corruption . | . . . . Corruption Purged . | . . . . Corruption Blocked . | . . . . Overload Shots . | . . . . Overflow Damage 32 | . . . 32 Projectiles 32 | . . . 32 Explosions . | . . . . Melee . | . . . . Knockbacks . | . . . . Impact . | . . . . Kinetic . | . . . . Secondary . | . . . . Self-Inflicted Damage . | . . . . Shots . | . . . . Rammed . | . . . . Targets Rammed . | . . . . Kicked . | . . . . Crushed . | . . . . Highest Temperature 300 | . 300 . 81 Average Temperature 75 | . 110 . 25 Received Heat Transfer 582 | . 243 36 303 Effects 1 | . 1 . . Energy Bleed 1 | . 1 . . Siege Activations . | . . . . Martial Activations . | . . . . Shielding Activations . | . . . . Robots Disrupted . | . . . . Combat Hostiles . | . . . . Robots Corrupted . | . . . . Combat Hostiles . | . . . . Parts Fried . | . . . . Impact Corruptions . | . . . . Robots Melted 1 | . . . 1 Combat Hostiles 1 | . . . 1 Parts Melted 7 | . 2 . 5 Heat Transferred 2849 | . 814 . 2035 Parts Sabotaged . | . . . . Parts Stolen . | . . . . Parts Stripped . | . . . . Power Chain Reactions . | . . . . Alert | -11 -10 -10 -9 ------- Run | Yrd Mat Min Mat Maximum Alert Level 2 | . . . 2 Low Security (%) 83 | 100 100 100 44 Level 1 14 | . . . 48 Level 2 1 | . . . 6 Level 3 . | . . . . Level 4 . | . . . . Level 5 . | . . . . High Security . | . . . . Max Security . | . . . . Peak Influence 418 | . 161 58 418 Initial 15 | . . 15 . Average 94 | . 89 8 214 Influence Increases 1501 | . 488 148 865 Destroy 0b10 Robot/C 960 | . 280 120 560 Destroy 0b10 Robot/NC 45 | . 10 . 35 Destroy Leader 222 | . 64 20 138 Allied During Kill 22 | . . 8 14 Successful Hack 33 | . 9 . 24 Select Force Hacks 90 | . 60 . 30 Disable Machine 15 | . . . 15 Destroy Structure 9 | . 5 . 4 Lose Combat Pursuer 105 | . 60 . 45 Influence Decreases 1107 | . 448 188 471 Entered New Map 25 | . . 25 . Time Decay 982 | . 428 163 391 Lost Part 40 | . 20 . 20 Lost Ally 60 | . . . 60 Squads Dispatched 9 | . 4 . 5 Investigation 5 | . 3 . 2 Extermination . | . . . . Reinforcement 4 | . 1 . 3 Assault . | . . . . Garrison . | . . . . Intercept . | . . . . Searches Triggered . | . . . . Construction Impeded . | . . . . Haulers Reinforced . | . . . . Active Scanning Responses . | . . . . Cargo Convoy Interrupts . | . . . . Stealth | -11 -10 -10 -9 --------- Run | Yrd Mat Min Mat Distress Signals 5 | . 1 . 4 Communications Jammed . | . . . . Distress Signals . | . . . . Times Spotted 77 | . 27 7 43 Peak Tracking Total 7 | . 5 3 7 Tactical Retreats 6 | . 3 . 3 Traps | -11 -10 -10 -9 ------- Run | Yrd Mat Min Mat Traps Triggered 2 | . 1 . 1 Indirectly . | . . . . Trap Hack Attempts . | . . . . Triggered . | . . . . Disarmed . | . . . . Reprogrammed . | . . . . Reused . | . . . . Traps Extracted . | . . . . Installed . | . . . . Triggered . | . . . . Machines | -11 -10 -10 -9 ---------- Run | Yrd Mat Min Mat Machines Disabled 1 | . . . 1 Max in Single Turn . | . . . . Machines Repaired . | . . . . Machines Dismantled . | . . . . Machines Sabotaged . | . . . . Overloaded Fab Kills . | . . . . Hacking | -11 -10 -10 -9 --------- Run | Yrd Mat Min Mat Machines Accessed 11 | . 5 . 6 Terminals 7 | . 3 . 4 Fabricators . | . . . . Repair Stations . | . . . . Recycling Units 3 | . 2 . 1 Scanalyzers 1 | . . . 1 Garrison Access . | . . . . Total Hacks 27 | . 12 . 15 Successful 13 | . 5 . 8 Failed 14 | . 7 . 7 Catastrophic . | . . . . Database Lockouts . | . . . . Manual 20 | . 7 . 13 Terminals 21 | . 10 . 11 Fabricators . | . . . . Repair Stations . | . . . . Recycling Units 4 | . 2 . 2 Scanalyzers 2 | . . . 2 Garrison Access . | . . . . Terminal Hacks 7 | . 2 . 5 Robot Analysis 4 | . 2 . 2 Prototype ID Bank 1 | . . . 1 Branch Access Points 1 | . . . 1 Zone Layout 1 | . . . 1 Fabricator Hacks . | . . . . Repair Station Hacks . | . . . . Recycling Unit Hacks . | . . . . Scanalyzer 1 | . . . 1 Retrieve Study 1 | . . . 1 Garrison Access Hacks . | . . . . Unauthorized Hacks 5 | . 3 . 2 Terminals 2 | . 1 . 1 Botnet 2 | . 1 . 1 Fabricators . | . . . . Repair Stations . | . . . . Recycling Units 3 | . 2 . 1 Tunnel 3 | . 2 . 1 Scanalyzers . | . . . . Garrison Access . | . . . . Data Cores Recovered 1 | . . . 1 Used 1 | . . . 1 Hacking Detections 6 | . 3 . 3 Full Trace Events 1 | . 1 . . Feedback Events . | . . . . Feedback Blocked . | . . . . Robot Schematics Acquired . | . . . . Robots Built . | . . . . Authchips . | . . . . Time . | . . . . Total Robot Build Rating . | . . . . Part Schematics Acquired . | . . . . Parts Built . | . . . . Authchips . | . . . . Time . | . . . . Total Part Build Rating . | . . . . Part Studies Acquired 1 | . . . 1 Parts Repaired . | . . . . Time . | . . . . Parts Recycled . | . . . . Recycled Matter . | . . . . Retrieved Matter . | . . . . Retrieved Components . | . . . . Parts Scanalyzed . | . . . . Part Schematics Acquired . | . . . . Parts Damaged . | . . . . Bothacking | -11 -10 -10 -9 ------------ Run | Yrd Mat Min Mat Used RIF Installer . | . . . . Robots Hacked . | . . . . Non-combat . | . . . . Combat . | . . . . Robot Hacks Applied . | . . . . Relay Couplers Released . | . . . . Fabnet Peak Effective % . | . . . . Robots Rewired . | . . . . Allies Hacked . | . . . . Hacks Repelled . | . . . . Allies | -11 -10 -10 -9 -------- Run | Yrd Mat Min Mat Total Allies 4 | . . 4 . Largest Group 3 | . . 3 3 Highest-Rated Group 40 | . . 40 40 Highest-Rated Ally 31 | . . 31 16 Total Orders . | . . . . Ally Attacks 45 | . . 13 32 Total Damage 474 | . . 182 292 Kills 6 | . . 2 4 Allies Corrupted . | . . . . Allies Melted . | . . . . Intel | -11 -10 -10 -9 ------- Run | Yrd Mat Min Mat Active Infowar (turns) . | . . . . Robot Analysis Total 4 | . 2 . 2 Derelict Logs Recovered 1 | . . 1 . Drone Launches . | . . . . Drone Recoveries . | . . . . Exploration | -11 -10 -10 -9 ------------- Run | Yrd Mat Min Mat Turns Passed 3636 | 77 1056 1397 1106 Spaces Moved 1463 | 45 406 563 449 Core 8 | 8 . . . Treads 1455 | 37 406 563 449 Legs . | . . . . Wheels . | . . . . Hover . | . . . . Flight . | . . . . Fastest Speed 50 | 50 160 240 160 Average Speed 207 | 144 209 240 170 Slowest Speed 240 | 160 240 240 213 Overloaded Moves . | . . . . Propulsion Burnouts . | . . . . Robots Hopped . | . . . . Potential Cave-ins . | . . . . Cave-ins Triggered . | . . . . Exploration Rate (%) 56 | 3 65 98 60 Regions Visited 3 Branch Regions 1 Pre-discovered Areas 4 | . 2 1 1 Known Exits Taken . | . . . . Unknown Exits Taken 3 | 1 1 1 . Scrap Searched 1 | . . 1 . Spaces Dug . | . . . . Terrain Destroyed . | . . . . Melee . | . . . . Projectile . | . . . . AOE . | . . . . Terrain Rammed . | . . . . Walls Destroyed . | . . . . Machines Disabled . | . . . . Actions | -11 -10 -10 -9 --------- Run | Yrd Mat Min Mat Total 1803 | 54 512 583 654 Wait 146 | . 42 4 100 Move 1460 | 44 405 562 449 Hop . | . . . . Pick Up 18 | 4 3 2 9 Fast Attach 14 | 6 5 . 3 Attach 5 | . 1 . 4 Detach 2 | . 1 . 1 Swap 13 | . 3 . 10 Drop 8 | . 2 . 6 Fire 137 | . 50 15 72 Melee . | . . . . Ram . | . . . . Kick . | . . . . Crush . | . . . . Escape Stasis . | . . . . Rewire . | . . . . Trap . | . . . . Miscellaneous . | . . . . Route ------- -11/Scrapyard -10/Materials (discovered 3 exits: *Mat x2 / [*Min]) -10/Mines (discovered 3 exits: *Mat x2 / [*Sub]) -9/Materials (discovered 3 exits: [*Mat x2] / *Min) History --------- Turn | Location | Event 13 | -11/Scrapyard | Discovered new exit (range 15) 78 | -11/Scrapyard | Entered Materials 141 | -10/Materials | Discovered new exit (range 15) 318 | -10/Materials | Build established: Mutant 446 | -10/Materials | Discovered new exit (range 16) 870 | -10/Materials | Discovered new exit (range 5) 1134 | -10/Materials | Entered Mines 1141 | -10/Mines | Escorted by a lone wolf Derelict 1161 | -10/Mines | Learned location of Storage (-8) 1235 | -10/Mines | Discovered new exit (range 10) 1367 | -10/Mines | Found a hidden stash of uninstalled traps 1420 | -10/Mines | Discovered new exit (range 10) 1509 | -10/Mines | Assisted by bots powering up and referring to "LRC-V3" 1778 | -10/Mines | Learned Materials stockpile data 1915 | -10/Mines | A weapon hastily lodged in a ceiling crevice suddenly fell to the ground 2014 | -10/Mines | Discovered new exit (range 12) 2531 | -10/Mines | Entered Materials 2531 | -9/Materials | Accompanied by 3 allies 2531 | -9/Materials | Evolved 2 slots: Propulsion x1, Utility x1 2892 | -9/Materials | Discovered new exit (range 13) 2987 | -9/Materials | Destroyed 7 combat bots 3009 | -9/Materials | Build established: Scavenger-Mutant 3049 | -9/Materials | Identified exit to Mines 3300 | -9/Materials | Discovered new exit (range 6) 3637 | -9/Materials | Self-destructed Last Messages --------------- 03432_ K-01 Serf collects debris. 03461_ K-01 Serf cleans the Material Processor. 03464_ G-34 Mercenary destroyed. 03464_ K-01 Serf collects debris. 03483_ ALERT: Hostiles spotted, dispatching reinforcements to Terminal M009. 03504_ Y-45 Defender destroyed. 03508_ K-01 Serf collects debris. 03519_ K-01 Serf cleans the Material Processor. 03521_ U-05 Engineer builds a Door. 03522_ K-01 Serf cleans the Material Processor. 03557_ Aluminum Leg melted. 03557_ Ion Engine melted. 03557_ Aluminum Leg melted. 03557_ G-34 Mercenary destroyed. 03558_ K-01 Serf collects debris. 03560_ G-34 Mercenary destroyed. 03561_ K-01 Serf collects debris. 03563_ Acquired 10 matter. 03565_ K-01 Serf collects debris. Map ----- +----------------------------------------------------+ | ????????????????# """"" #???? | | ????????????????# * """"" #???? | | ????????????????+ %! """"" #???? | | ????????????????# [ """ #???? | | ????????????????# %### #???? | | ??????????? ????# #?# #???? | | ??????????? ????## ##?# #???? | | ????????###+###??# #??# #???? | | ????????# #??# #??#*! #???? | | ????????# ! #??# #?##+##### #???? | | ????????# ???# #?# % # #???? | | ????????# ???# #?#] # #???? | | ????????? ???# #?# """ # ??? | | ?????????# #???# #?# """ # ?? | | ???####??# #???# #?# """ + ?? | | ??? ??# #???# #?# # ####? | | # """ ?# #???# ########## ##??? | | # """ ?# ##### ##### #??? | | # """ # #??? | | # # T ] #??? | | # "T" + #??? | | # # ##### ##### ???? | | ??######## ##??###+###??????##????? | | ???????## ##?? T?????????????? | | ???????# # #???????????? | | ???????# @ # #???????????? | | ???????# o # #???????????? | | ???????# # """ #???????????? | | ???????#"" ""# """"" #???????????? | | ???????##"!!!"## """"" #???????????? | | ????????##"""### """"" #???????????? | | ?????????#####?#????? #???????????? | | ??????????????????????###???????????? | | ????????????????????????????????????? | | ????????????????????????????????????? | | | | | | | | | | | | | | | | | | | | | | | | | | | | | | | +----------------------------------------------------+ Best States ------------- Heat Dissipation 48 Energy Generation 12 Energy Capacity 265 Matter Stores 300 Matter Capacity 300 Sight Range 16 Terrain Scan Density 10 Armor Coverage 150 Evasion (%) 40 Recoil Reduction 3 Item Schematics ----------------- None Robot Schematics ------------------ None Fabricated ------------ Nothing Repaired ---------- Nothing Studied --------- Lgt. Treads | -9/Materials | Hacked Alien Tech Used ----------------- None Achievements -------------- None Challenges ------------ None Game ------ Seed BraceBottomlessNetwork Manual? 0 Play Time 00:20:33 Cumulative 302.8 hours Start 2026.08.26 @ 17:01:21 End 2026.08.26 @ 17:15:39 Sessions 1 Manual Loads 0 Difficulty Rogue Special Mode None Game No. 286 Rogue 232 Adventurer 54 Explorer 0 Win Type - Total 12 Types 8/0/1/1/0/0/0/1/0/1 Lore% 77 Gallery% 66 Achievement% 61 Wizard Run 0 Options --------- Layout 1 ASCII 0 Keyboard 0 Movement Mouse Keybinds 1 Fullscreen 2 Font 32/Tamsyn Map View 50x35 Zoom Use 0% Tactical HUD 1 Map Filters NONE Filters NONE Steam 1 RUN: cce7f423-15c9-4a5a-a4a2-4ae8b4c5d038